[Event "EWIRCC 2019"]
[Site "Monte-Carlo"]
[Date "2019.11.30"]
[Round "5.9"]
[White "Gunina, Valentina"]
[Black "Berend, Elvira"]
[Result "0-1"]
[ECO "E11"]
[WhiteElo "2509"]
[BlackElo "2349"]
[Annotator "ChessBase"]
[PlyCount "104"]
[EventDate "2019.11.28"]
[EventType "swiss"]
[EventCountry "MNC"]
[SourceTitle "playchess.com"]
[Source "ChessBase"]
[SourceQuality "1"]
[TimeControl "5400+30"]

1. d4 {[%emt 1:15:12]} Nf6 {[%emt 1:15:11]} 2. c4 {[%emt 0:00:22]} e6 {[%emt 0:00:23]} 3. Nf3 {[%emt 0:00:22]} Bb4+ {[%emt 0:00:24]} 4. Bd2 {[%emt 0:00:21]} c5 {[%emt 0:00:21]} 5. Bxb4 {[%emt 0:00:22]} cxb4 {[%emt 0:00:22]} 6. g3 {[%emt 0:00:22]} O-O {[%emt 0:00:23]} 7. Bg2 {[%emt 0:00:21]} d6 {[%emt 0:01:28]} 8. O-O {[%emt 0:00:25]} Nc6 {[%emt 0:00:26]} 9. e3 {[%emt 0:00:47]} e5 {[%emt 0:00:38]} 10. d5 {[%emt 0:00:39]} Ne7 {[%emt 0:00:33]} 11. Qa4 {[%emt 0:00:50]} a5 {[%emt 0:00:29]} 12. a3 {[%emt 0:00:21]} Bd7 {[%emt 0:00:32]} 13. Qb3 {[%emt 0:00:36]} Qb6 {[%emt 0:00:49]} 14. Ne1 {[%emt 0:02:38]} Bf5 {[%emt 0:00:44]} 15. Nd2 {[%emt 0:04:24]} Nd7 {[%emt 0:00:44]} 16. e4 {[%emt 0:00:22]} Bg4 {[%emt 0:01:20]} 17. Nc2 {[%emt 0:02:22]} Nc5 {[%emt 0:02:36]} 18. Qe3 {[%emt 0:00:22]} f5 {[%emt 0:02:53]} 19. axb4 {[%emt 0:00:25]} axb4 {[%emt 0:00:24]} 20. Rxa8 {[%emt 0:00:21]} Rxa8 {[%emt 0:00:23]} 21. h3 {[%emt 0:02:15]} f4 {[%emt 0:01:18]} 22. gxf4 {[%emt 0:00:22]} exf4 {[%emt 0:00:21]} 23. Qxf4 {[%emt 0:00:21]} Be2 {[%emt 0:00:33]} 24. Ra1 {[%emt 0:00:22]} Rxa1+ {[%emt 0:01:18]} 25. Nxa1 {[%emt 0:00:22]} Nd3 {[%emt 0:01:28]} 26. Qg3 {[%emt 0:00:28]} Ng6 {[%emt 0:00:43]} 27. Nab3 {[%emt 0:01:08]} Nge5 {[%emt 0:01:14]} 28. Bf1 {[%emt 0:01:26]} Bxf1 {[%emt 0:00:36]} 29. Nxf1 {[%emt 0:00:22]} Qc7 {[%emt 0:02:00]} 30. Ne3 {[%emt 0:01:56]} Nxc4 {[%emt 0:00:57]} 31. Nf5 {[%emt 0:00:51]} Nde5 {[%emt 0:01:06]} 32. Nbd4 {[%emt 0:00:26]} Nd2 {[%emt 0:00:38]} 33. Kg2 {[%emt 0:00:38]} Nxe4 {[%emt 0:00:24]} 34. Qh4 {[%emt 0:01:24]} Nf6 {[%emt 0:01:00]} 35. Qg5 {[%emt 0:02:06]} Ng6 {[%emt 0:00:42]} 36. Ne6 {[%emt 0:00:23]} Qc4 {[%emt 0:00:42]} 37. Nh6+ {[%emt 0:00:25]} gxh6 {[%emt 0:00:48]} 38. Qxf6 {[%emt 0:00:22]} Qxd5+ {[%emt 0:00:26]} 39. Kg1 {[%emt 0:00:30]} Qe5 {[%emt 0:00:48]} 40. Qd8+ {[%emt 0:00:23]} Kf7 {[%emt 0:00:21]} 41. Qd7+ {[%emt 0:00:39]} Kf6 {[%emt 0:00:33]} 42. Ng7 {[%emt 0:00:58]} Qe1+ {[%emt 0:00:40]} 43. Kh2 {[%emt 0:01:01]} Qxf2+ {[%emt 0:00:26]} 44. Kh1 {[%emt 0:00:21]} Qf1+ {[%emt 0:00:34]} 45. Kh2 {[%emt 0:00:21]} Qf2+ {[%emt 0:00:49]} 46. Kh1 {[%emt 0:00:21]} Qe1+ {[%emt 0:00:31]} 47. Kh2 {[%emt 0:00:24]} Qd2+ {[%emt 0:00:21]} 48. Kh1 {[%emt 0:00:32]} Qc1+ {[%emt 0:00:22]} 49. Kh2 {[%emt 0:00:27]} Qxb2+ {[%emt 0:00:25]} 50. Kh1 {[%emt 0:00:34]} Qc1+ {[%emt 0:00:21]} 51. Kh2 {[%emt 0:00:21]} Qc2+ {[%emt 0:00:22]} 52. Kh1 {[%emt 0:00:25]} Qc6+ {[%emt 0:00:24]} 0-1

[Event "EWIRCC 2019"]
[Site "Monte-Carlo"]
[Date "2019.11.30"]
[Round "5.10"]
[White "Savina, Anastasia"]
[Black "Cramling, Pia"]
[Result "0-1"]
[ECO "E49"]
[WhiteElo "2354"]
[BlackElo "2443"]
[Annotator "NA"]
[PlyCount "49"]
[EventDate "2019.11.28"]
[EventType "swiss"]
[EventCountry "MNC"]
[SourceTitle "playchess.com"]
[Source "ChessBase"]
[SourceQuality "1"]
[TimeControl "5400+30"]

1. d4 {[%emt 1:15:12]} Nf6 {[%emt 1:15:11]} 2. c4 {[%emt 0:00:22]} e6 {[%emt 0:00:21]} 3. Nc3 {[%emt 0:00:22]} Bb4 {[%emt 0:00:21]} 4. e3 {[%emt 0:00:21]} O-O {[%emt 0:00:23]} 5. Bd3 {[%emt 0:00:23]} d5 {[%emt 0:00:25]} 6. Nge2 {[%emt 0:00:24]} dxc4 {[%emt 0:01:02]} 7. Bxc4 {[%emt 0:00:25]} c5 {[%emt 0:00:22]} 8. a3 {[%emt 0:00:47]} Bxc3+ {[%emt 0:00:22]} 9. bxc3 {[%emt 0:00:22]} Nc6 {[%emt 0:00:59]} 10. a4 {[%emt 0:01:31]} Na5 {[%emt 0:01:27]} 11. Ba2 {[%emt 0:00:57]} b6 {[%emt 0:00:30]} 12. Ba3 {[%emt 0:01:26]} Qc7 {[%emt 0:01:21]} 13. Qd3 {[%emt 0:01:00]} Bb7 {[%emt 0:00:35]} 14. O-O {[%emt 0:01:31]} Rfd8 {[%emt 0:01:14]} 15. Ng3 {[%emt 0:03:28]} e5 {[%emt 0:00:40]} 16. Rac1 {[%emt 0:03:33]} Qc6 {[%emt 0:01:03]} 17. f3 {[%emt 0:03:48]} Qxa4 {[%emt 0:00:27]} 18. c4 {[%emt 0:01:04]} exd4 {[%emt 0:00:46]} 19. Nf5 {[%emt 0:00:29]} Nc6 {[%emt 0:01:57]} 20. f4 {[%emt 0:02:10]} Nb4 {[%emt 0:02:44]} 21. Bxb4 {[%emt 0:00:29]} Be4 {[%emt 0:00:29]} 22. Ne7+ {[%emt 0:00:44]} Kf8 {[%emt 0:00:32]} 23. Qe2 {[%emt 0:00:31]} d3 {[%emt 0:01:22]} 24. Qb2 {[%emt 0:00:30]} Qxb4 {[%emt 0:00:46]} 25. Qe5 {[%emt 0:00:41]} 0-1

[Event "EWIRCC 2019"]
[Site "Monte-Carlo"]
[Date "2019.11.30"]
[Round "5.11"]
[White "Bodnaruk, Anastasia"]
[Black "Solozhenkina, Elizaveta"]
[Result "1/2-1/2"]
[ECO "C18"]
[WhiteElo "2412"]
[BlackElo "2314"]
[Annotator "NA"]
[PlyCount "63"]
[EventDate "2019.11.28"]
[EventType "swiss"]
[EventCountry "MNC"]
[SourceTitle "playchess.com"]
[Source "ChessBase"]
[SourceQuality "1"]
[TimeControl "5400+30"]

1. e4 {[%emt 1:15:12]} e6 {[%emt 1:16:25]} 2. d4 {[%emt 0:00:38]} d5 {[%emt 0:00:21]} 3. Nc3 {[%emt 0:00:23]} Bb4 {[%emt 0:00:21]} 4. e5 {[%emt 0:00:21]} c5 {[%emt 0:00:22]} 5. a3 {[%emt 0:00:21]} Ba5 {[%emt 0:00:21]} 6. b4 {[%emt 0:00:56]} cxd4 {[%emt 0:00:26]} 7. Nb5 {[%emt 0:00:39]} Bc7 {[%emt 0:00:52]} 8. f4 {[%emt 0:01:28]} Bd7 {[%emt 0:00:21]} 9. Nxc7+ {[%emt 0:01:05]} Qxc7 {[%emt 0:00:23]} 10. Bd3 {[%emt 0:00:48]} Ba4 {[%emt 0:01:55]} 11. Bb2 {[%emt 0:00:54]} Nc6 {[%emt 0:00:38]} 12. Nf3 {[%emt 0:00:28]} Rc8 {[%emt 0:00:54]} 13. O-O {[%emt 0:00:54]} Nge7 {[%emt 0:04:07]} 14. g4 {[%emt 0:02:46]} Qb6 {[%emt 0:02:40]} 15. Rb1 {[%emt 0:03:10]} Bb5 {[%emt 0:01:53]} 16. Kg2 {[%emt 0:01:04]} h5 {[%emt 0:00:31]} 17. h3 {[%emt 0:01:29]} Bxd3 {[%emt 0:02:35]} 18. Qxd3 {[%emt 0:02:28]} Ng6 {[%emt 0:00:21]} 19. Qd2 {[%emt 0:00:25]} Qc7 {[%emt 0:00:58]} 20. Rbc1 {[%emt 0:01:14]} a6 {[%emt 0:01:37]} 21. Nxd4 {[%emt 0:01:39]} Qe7 {[%emt 0:01:45]} 22. Rh1 {[%emt 0:02:04]} Nxd4 {[%emt 0:00:41]} 23. Bxd4 {[%emt 0:00:22]} Rc4 {[%emt 0:00:23]} 24. c3 {[%emt 0:00:42]} Qh4 {[%emt 0:00:52]} 25. Bf2 {[%emt 0:00:23]} Qe7 {[%emt 0:00:28]} 26. Bd4 {[%emt 0:00:44]} Qh4 {[%emt 0:00:26]} 27. Bf2 {[%emt 0:00:21]} Qe7 {[%emt 0:00:20]} 28. Bd4 {[%emt 0:00:39]} Qh4 {[%emt 0:00:22]} 29. Bf2 {[%emt 0:00:20]} Qe7 {[%emt 0:00:21]} 30. Bd4 {[%emt 0:00:48]} Qh4 {[%emt 0:00:23]} 31. Bf2 {[%emt 0:00:21]} Qe7 {[%emt 0:00:21]} 32. Bd4 {[%emt 0:00:33]} 1/2-1/2

[Event "EWIRCC 2019"]
[Site "Monte-Carlo"]
[Date "2019.11.30"]
[Round "5.13"]
[White "Socko, Monika"]
[Black "Gaponenko, Inna"]
[Result "0-1"]
[ECO "D20"]
[WhiteElo "2417"]
[BlackElo "2427"]
[Annotator "NA"]
[PlyCount "106"]
[EventDate "2019.11.28"]
[EventType "swiss"]
[EventCountry "MNC"]
[SourceTitle "playchess.com"]
[Source "ChessBase"]
[SourceQuality "1"]
[TimeControl "5400+30"]

1. d4 {[%emt 1:15:11]} d5 {[%emt 1:15:11]} 2. c4 {[%emt 0:00:21]} dxc4 {[%emt 0:00:20]} 3. e4 {[%emt 0:00:21]} e5 {[%emt 0:00:22]} 4. Nf3 {[%emt 0:00:26]} Bb4+ {[%emt 0:00:21]} 5. Bd2 {[%emt 0:00:25]} Bxd2+ {[%emt 0:00:21]} 6. Nbxd2 {[%emt 0:00:53]} exd4 {[%emt 0:00:28]} 7. Bxc4 {[%emt 0:00:22]} Nc6 {[%emt 0:00:23]} 8. O-O {[%emt 0:00:50]} Qf6 {[%emt 0:00:22]} 9. e5 {[%emt 0:04:40]} Qg6 {[%emt 0:00:21]} 10. Bb5 {[%emt 0:00:42]} Nge7 {[%emt 0:03:17]} 11. Nxd4 {[%emt 0:00:37]} O-O {[%emt 0:00:23]} 12. Nxc6 {[%emt 0:00:36]} Nxc6 {[%emt 0:00:22]} 13. Bxc6 {[%emt 0:00:22]} Qxc6 {[%emt 0:00:21]} 14. Qh5 {[%emt 0:02:41]} Rd8 {[%emt 0:01:36]} 15. Nf3 {[%emt 0:00:35]} Qg6 {[%emt 0:00:37]} 16. Qxg6 {[%emt 0:01:03]} hxg6 {[%emt 0:00:22]} 17. Rac1 {[%emt 0:00:24]} c6 {[%emt 0:00:26]} 18. Rc3 {[%emt 0:00:39]} Bg4 {[%emt 0:00:58]} 19. h3 {[%emt 0:00:55]} Bxf3 20. Rxf3 {[%emt 0:00:21]} Rd2 {[%emt 0:01:37]} 21. Rb3 {[%emt 0:00:21]} b6 {[%emt 0:00:21]} 22. Re1 {[%emt 0:00:20]} Rad8 {[%emt 0:00:26]} 23. e6 {[%emt 0:02:15]} f6 {[%emt 0:02:00]} 24. Ra3 {[%emt 0:00:28]} a5 {[%emt 0:00:33]} 25. Rc3 {[%emt 0:00:55]} c5 {[%emt 0:04:14]} 26. Rb3 {[%emt 0:00:37]} Rd1 {[%emt 0:00:24]} 27. Rbe3 {[%emt 0:00:37]} Rxe1+ {[%emt 0:00:22]} 28. Rxe1 {[%emt 0:00:21]} Re8 {[%emt 0:00:21]} 29. f4 {[%emt 0:01:08]} Kf8 {[%emt 0:00:21]} 30. g4 {[%emt 0:00:22]} Ke7 {[%emt 0:00:21]} 31. f5 {[%emt 0:00:35]} gxf5 {[%emt 0:00:23]} 32. gxf5 {[%emt 0:00:21]} g6 {[%emt 0:00:57]} 33. Rd1 {[%emt 0:01:53]} gxf5 {[%emt 0:00:30]} 34. Rd7+ {[%emt 0:00:21]} Kxe6 {[%emt 0:00:21]} 35. Rb7 {[%emt 0:00:21]} Kd5 {[%emt 0:02:48]} 36. Rxb6 {[%emt 0:00:21]} Re2 {[%emt 0:00:21]} 37. h4 {[%emt 0:00:43]} Re4 {[%emt 0:00:34]} 38. Rxf6 {[%emt 0:00:32]} Rxh4 {[%emt 0:00:46]} 39. Rxf5+ {[%emt 0:00:33]} Kc4 {[%emt 0:00:21]} 40. Rf2 {[%emt 0:01:12]} Kd3 {[%emt 0:00:30]} 41. Kg2 {[%emt 0:00:51]} Rc4 {[%emt 0:00:39]} 42. Kg3 {[%emt 0:00:27]} a4 {[%emt 0:01:04]} 43. b3 {[%emt 0:01:05]} axb3 {[%emt 0:00:27]} 44. Rf3+ {[%emt 0:01:34]} Kc2 {[%emt 0:00:54]} 45. Rxb3 {[%emt 0:00:21]} Ra4 {[%emt 0:00:40]} 46. Kf3 {[%emt 0:00:56]} c4 {[%emt 0:00:38]} 47. Rb8 {[%emt 0:01:12]} Rxa2 {[%emt 0:00:32]} 48. Ke3 {[%emt 0:00:30]} c3 {[%emt 0:00:54]} 49. Rh8 {[%emt 0:00:36]} Ra7 {[%emt 0:00:21]} 50. Rb8 {[%emt 0:00:32]} Re7+ {[%emt 0:00:29]} 51. Kd4 {[%emt 0:00:21]} Kd2 {[%emt 0:00:28]} 52. Rh8 {[%emt 0:00:22]} c2 {[%emt 0:00:26]} 53. Rh2+ {[%emt 0:00:28]} Re2 {[%emt 0:00:23]} 0-1

[Event "EWIRCC 2019"]
[Site "Monte-Carlo"]
[Date "2019.11.30"]
[Round "5.14"]
[White "Belenkaya, Dina"]
[Black "Mkrtchian, Lilit"]
[Result "0-1"]
[ECO "C00"]
[WhiteElo "2302"]
[BlackElo "2402"]
[Annotator "NA"]
[PlyCount "100"]
[EventDate "2019.11.28"]
[EventType "swiss"]
[EventCountry "MNC"]
[SourceTitle "playchess.com"]
[Source "ChessBase"]
[SourceQuality "1"]
[TimeControl "5400+30"]

1. e4 {[%emt 1:15:11]} e6 {[%emt 1:15:11]} 2. Qe2 {[%emt 0:00:22]} c5 {[%emt 0:00:22]} 3. g3 {[%emt 0:00:25]} Nc6 {[%emt 0:00:21]} 4. Nf3 {[%emt 0:00:23]} g6 {[%emt 0:00:22]} 5. Bg2 {[%emt 0:00:26]} Bg7 {[%emt 0:00:21]} 6. h4 {[%emt 0:00:24]} h6 {[%emt 0:00:22]} 7. O-O {[%emt 0:00:27]} d6 {[%emt 0:00:32]} 8. c3 {[%emt 0:00:23]} Nge7 {[%emt 0:00:22]} 9. d4 {[%emt 0:00:22]} cxd4 {[%emt 0:00:59]} 10. cxd4 {[%emt 0:00:39]} Nxd4 {[%emt 0:00:24]} 11. Nxd4 {[%emt 0:00:22]} Bxd4 {[%emt 0:00:22]} 12. Nc3 {[%emt 0:00:24]} a6 {[%emt 0:01:28]} 13. Rd1 {[%emt 0:00:39]} Bg7 {[%emt 0:01:04]} 14. Be3 {[%emt 0:01:32]} O-O {[%emt 0:03:08]} 15. Qd2 {[%emt 0:00:24]} Kh7 {[%emt 0:00:46]} 16. Qxd6 {[%emt 0:01:05]} Qxd6 {[%emt 0:00:24]} 17. Rxd6 {[%emt 0:00:22]} Be5 {[%emt 0:04:24]} 18. Rd2 {[%emt 0:01:03]} b5 {[%emt 0:00:28]} 19. f4 {[%emt 0:01:01]} Bxc3 {[%emt 0:01:29]} 20. bxc3 {[%emt 0:00:24]} e5 {[%emt 0:01:23]} 21. fxe5 {[%emt 0:07:49]} Be6 {[%emt 0:00:25]} 22. Rd6 {[%emt 0:00:45]} Rfc8 {[%emt 0:00:37]} 23. Bd4 {[%emt 0:00:31]} Rc4 {[%emt 0:00:28]} 24. Bf1 {[%emt 0:00:54]} Ra4 {[%emt 0:00:22]} 25. a3 {[%emt 0:00:26]} Rc8 {[%emt 0:02:58]} 26. Be2 {[%emt 0:01:04]} Nc6 {[%emt 0:01:58]} 27. Kf2 {[%emt 0:00:55]} Nxd4 {[%emt 0:00:58]} 28. cxd4 {[%emt 0:00:36]} Rc2 {[%emt 0:00:42]} 29. Ke1 {[%emt 0:01:41]} Rc3 {[%emt 0:01:00]} 30. d5 {[%emt 0:00:57]} Bh3 {[%emt 0:00:49]} 31. Kd2 {[%emt 0:00:41]} Rxg3 {[%emt 0:00:24]} 32. Bd3 {[%emt 0:00:28]} Rd4 {[%emt 0:00:22]} 33. Rxa6 {[%emt 0:00:43]} Rgxd3+ {[%emt 0:00:36]} 34. Kc2 {[%emt 0:00:21]} Re3 {[%emt 0:00:49]} 35. Ra7 {[%emt 0:01:03]} Rexe4 {[%emt 0:00:21]} 36. Rxf7+ {[%emt 0:01:46]} Kg8 {[%emt 0:00:21]} 37. Rf6 {[%emt 0:00:24]} Bf5 {[%emt 0:00:28]} 38. Rg1 {[%emt 0:01:12]} Rxe5+ {[%emt 0:00:29]} 39. Kc3 {[%emt 0:00:21]} Rdxd5 {[%emt 0:00:24]} 40. h5 {[%emt 0:00:21]} Kg7 {[%emt 0:00:32]} 41. Rb6 {[%emt 0:00:22]} Re3+ {[%emt 0:00:22]} 42. Kb4 {[%emt 0:00:22]} Re4+ {[%emt 0:00:29]} 43. Kc3 {[%emt 0:00:33]} Rc5+ {[%emt 0:00:20]} 44. Kb3 {[%emt 0:00:23]} Be6+ {[%emt 0:00:24]} 45. Kb2 {[%emt 0:00:22]} Rxh5 {[%emt 0:00:27]} 46. Rb7+ {[%emt 0:00:28]} Kf6 {[%emt 0:00:22]} 47. Rf1+ {[%emt 0:00:21]} Rf5 {[%emt 0:00:23]} 48. Rc1 {[%emt 0:00:21]} Rf2+ {[%emt 0:00:24]} 49. Kb1 {[%emt 0:00:34]} Ree2 {[%emt 0:00:32]} 50. Rxb5 {[%emt 0:00:21]} Bf5+ {[%emt 0:00:22]} 0-1

[Event "EWIRCC 2019"]
[Site "Monte-Carlo"]
[Date "2019.11.30"]
[Round "5.15"]
[White "Chiburdanidze, Maia"]
[Black "Dornbusch, Tatiana"]
[Result "1/2-1/2"]
[ECO "B10"]
[WhiteElo "2500"]
[BlackElo "2269"]
[Annotator "ChessBase"]
[PlyCount "117"]
[EventDate "2019.11.28"]
[EventType "swiss"]
[EventCountry "MNC"]
[SourceTitle "playchess.com"]
[Source "ChessBase"]
[SourceQuality "1"]
[TimeControl "5400+30"]

1. d4 {[%emt 1:15:12]} Nf6 {[%emt 1:15:11]} 2. Nf3 {[%emt 0:00:23]} c5 {[%emt 0:00:21]} 3. e3 {[%emt 0:00:24]} g6 {[%emt 0:00:23]} 4. Bd3 {[%emt 0:00:26]} Bg7 {[%emt 0:00:27]} 5. O-O {[%emt 0:00:24]} O-O {[%emt 0:00:29]} 6. Nbd2 {[%emt 0:00:30]} cxd4 {[%emt 0:01:25]} 7. exd4 {[%emt 0:00:23]} d5 {[%emt 0:00:21]} 8. Ne5 {[%emt 0:00:43]} Nc6 {[%emt 0:00:32]} 9. Ndf3 {[%emt 0:01:42]} Nb4 {[%emt 0:00:46]} 10. Be2 {[%emt 0:01:34]} Bf5 {[%emt 0:00:41]} 11. Ne1 {[%emt 0:00:26]} Rc8 {[%emt 0:01:11]} 12. c3 {[%emt 0:00:24]} Nc6 {[%emt 0:00:22]} 13. N1d3 {[%emt 0:00:33]} Nxe5 {[%emt 0:01:57]} 14. Nxe5 {[%emt 0:00:32]} Nd7 {[%emt 0:00:39]} 15. Nf3 {[%emt 0:00:48]} Bg4 {[%emt 0:02:59]} 16. h3 {[%emt 0:02:02]} Bxf3 {[%emt 0:00:25]} 17. Bxf3 {[%emt 0:00:21]} e6 {[%emt 0:00:22]} 18. Qb3 {[%emt 0:00:28]} Qc7 {[%emt 0:01:07]} 19. Rd1 {[%emt 0:01:12]} Nb6 {[%emt 0:00:58]} 20. a4 {[%emt 0:00:59]} Nc4 {[%emt 0:00:40]} 21. Qa2 {[%emt 0:00:38]} b6 {[%emt 0:00:39]} 22. b3 {[%emt 0:00:43]} Nd6 {[%emt 0:01:35]} 23. Bb2 {[%emt 0:00:56]} a6 {[%emt 0:01:11]} 24. Rac1 {[%emt 0:00:45]} b5 {[%emt 0:00:22]} 25. Ba3 {[%emt 0:02:15]} Rfd8 {[%emt 0:00:39]} 26. Bb4 {[%emt 0:00:50]} Ra8 {[%emt 0:04:03]} 27. Ra1 {[%emt 0:01:23]} bxa4 {[%emt 0:01:54]} 28. Qxa4 {[%emt 0:00:25]} Nb7 {[%emt 0:00:45]} 29. Rac1 {[%emt 0:01:43]} a5 {[%emt 0:00:54]} 30. Ba3 {[%emt 0:00:24]} Qb6 {[%emt 0:00:23]} 31. Rc2 {[%emt 0:00:51]} Rac8 {[%emt 0:00:26]} 32. Be2 {[%emt 0:00:44]} h5 {[%emt 0:00:40]} 33. Bb2 {[%emt 0:00:57]} Nd6 {[%emt 0:00:41]} 34. c4 {[%emt 0:00:32]} dxc4 {[%emt 0:00:27]} 35. bxc4 {[%emt 0:00:22]} Nf5 {[%emt 0:00:25]} 36. c5 {[%emt 0:00:39]} Qb4 {[%emt 0:00:25]} 37. Qxb4 {[%emt 0:00:30]} axb4 {[%emt 0:00:21]} 38. Rc4 {[%emt 0:00:26]} b3 {[%emt 0:00:49]} 39. g4 {[%emt 0:00:54]} hxg4 {[%emt 0:00:22]} 40. hxg4 {[%emt 0:00:21]} Ne7 {[%emt 0:00:46]} 41. Bf3 {[%emt 0:01:03]} Nc6 {[%emt 0:00:40]} 42. Bc3 {[%emt 0:01:30]} Rd7 {[%emt 0:00:37]} 43. Ra1 {[%emt 0:01:17]} Nxd4 {[%emt 0:00:35]} 44. Bxd4 {[%emt 0:00:31]} Rxd4 {[%emt 0:00:22]} 45. Rxd4 {[%emt 0:00:26]} Bxd4 {[%emt 0:00:22]} 46. Rb1 {[%emt 0:00:24]} b2 {[%emt 0:00:42]} 47. c6 {[%emt 0:00:22]} f5 {[%emt 0:00:29]} 48. gxf5 {[%emt 0:00:24]} gxf5 {[%emt 0:00:21]} 49. Kf1 {[%emt 0:00:24]} Ra8 {[%emt 0:00:24]} 50. Be2 {[%emt 0:00:27]} Ra1 {[%emt 0:01:01]} 51. Bd3 {[%emt 0:00:21]} Be5 {[%emt 0:00:27]} 52. Ke2 {[%emt 0:00:32]} Kf7 {[%emt 0:00:23]} 53. Kd1 {[%emt 0:00:25]} Ke7 {[%emt 0:00:29]} 54. Kc2 {[%emt 0:00:22]} Kd6 {[%emt 0:00:27]} 55. Bc4 {[%emt 0:00:24]} Ra4 {[%emt 0:00:34]} 56. Rd1+ {[%emt 0:00:51]} Kxc6 {[%emt 0:01:04]} 57. Bxe6 {[%emt 0:00:25]} Ra1 {[%emt 0:00:02]} 58. Bxf5 {[%emt 0:00:39]} Rxd1 {[%emt 0:00:29]} 59. Kxd1 {[%emt 0:00:21]} 1/2-1/2

[Event "EWIRCC 2019"]
[Site "Monte-Carlo"]
[Date "2019.11.30"]
[Round "5.16"]
[White "Terbe, Julianna"]
[Black "Arakhamia-Grant, Ketevan"]
[Result "1-0"]
[ECO "A48"]
[WhiteElo "2287"]
[BlackElo "2376"]
[Annotator "NA"]
[PlyCount "95"]
[EventDate "2019.11.28"]
[EventType "swiss"]
[EventCountry "MNC"]
[SourceTitle "playchess.com"]
[Source "ChessBase"]
[SourceQuality "1"]
[TimeControl "5400+30"]

1. d4 {[%emt 1:15:11]} Nf6 {[%emt 1:15:13]} 2. Nf3 {[%emt 0:00:22]} g6 {[%emt 0:00:24]} 3. Bf4 {[%emt 0:00:25]} Bg7 {[%emt 0:00:26]} 4. e3 {[%emt 0:00:21]} d6 {[%emt 0:00:27]} 5. h3 {[%emt 0:00:22]} Nbd7 {[%emt 0:00:35]} 6. Be2 {[%emt 0:00:24]} c5 {[%emt 0:00:31]} 7. c3 {[%emt 0:00:27]} b6 {[%emt 0:00:30]} 8. O-O {[%emt 0:00:24]} Bb7 {[%emt 0:00:22]} 9. Nbd2 {[%emt 0:00:21]} O-O {[%emt 0:00:29]} 10. a4 {[%emt 0:00:21]} a6 {[%emt 0:01:41]} 11. Bh2 {[%emt 0:00:23]} Ne4 {[%emt 0:02:21]} 12. Bd3 {[%emt 0:01:26]} Nxd2 {[%emt 0:01:31]} 13. Nxd2 {[%emt 0:00:23]} e5 {[%emt 0:00:26]} 14. dxe5 {[%emt 0:02:10]} Nxe5 {[%emt 0:01:29]} 15. Be2 {[%emt 0:00:23]} d5 {[%emt 0:00:49]} 16. Nf3 {[%emt 0:00:23]} Nc6 {[%emt 0:00:45]} 17. Qb3 {[%emt 0:00:50]} Re8 {[%emt 0:05:01]} 18. Rfd1 {[%emt 0:00:24]} Na5 {[%emt 0:00:43]} 19. Qc2 {[%emt 0:00:27]} Qf6 {[%emt 0:01:28]} 20. Rab1 {[%emt 0:01:07]} Rac8 {[%emt 0:00:32]} 21. Bg3 {[%emt 0:03:27]} h6 {[%emt 0:02:16]} 22. Rd2 {[%emt 0:01:53]} d4 {[%emt 0:00:46]} 23. exd4 {[%emt 0:00:57]} Be4 {[%emt 0:00:21]} 24. Bd3 {[%emt 0:01:20]} Bxf3 {[%emt 0:00:24]} 25. gxf3 {[%emt 0:00:23]} cxd4 {[%emt 0:00:25]} 26. Bxa6 {[%emt 0:00:31]} dxc3 {[%emt 0:01:48]} 27. Rd6 {[%emt 0:00:37]} Qxf3 {[%emt 0:01:06]} 28. Bxc8 {[%emt 0:00:30]} Rxc8 {[%emt 0:00:32]} 29. bxc3 {[%emt 0:00:25]} Rxc3 {[%emt 0:00:45]} 30. Qd1 {[%emt 0:01:22]} Qf5 {[%emt 0:00:22]} 31. Rc1 {[%emt 0:03:52]} Rb3 {[%emt 0:00:26]} 32. Qg4 {[%emt 0:02:48]} Qxg4 {[%emt 0:00:49]} 33. hxg4 {[%emt 0:00:21]} Rb4 {[%emt 0:00:21]} 34. Rc8+ {[%emt 0:00:23]} Kh7 {[%emt 0:00:21]} 35. Rc7 {[%emt 0:00:21]} Nc4 {[%emt 0:00:36]} 36. Rdd7 {[%emt 0:00:25]} Ne5 {[%emt 0:00:27]} 37. Re7 {[%emt 0:00:56]} Rxg4 {[%emt 0:00:30]} 38. Kf1 {[%emt 0:00:35]} Rg5 {[%emt 0:00:49]} 39. Bxe5 {[%emt 0:00:40]} Bxe5 {[%emt 0:00:23]} 40. Rxf7+ {[%emt 0:00:21]} Kg8 {[%emt 0:00:21]} 41. Ra7 {[%emt 0:00:28]} Rf5 {[%emt 0:00:41]} 42. Rfd7 {[%emt 0:00:33]} Rf8 {[%emt 0:00:34]} 43. Rab7 {[%emt 0:00:34]} h5 {[%emt 0:00:30]} 44. Kg2 {[%emt 0:00:22]} Rf4 {[%emt 0:00:27]} 45. Rd8+ {[%emt 0:00:41]} Rf8 {[%emt 0:00:24]} 46. Rxf8+ {[%emt 0:00:21]} Kxf8 {[%emt 0:00:21]} 47. Rxb6 {[%emt 0:00:21]} Ke7 {[%emt 0:00:48]} 48. Rxg6 {[%emt 0:00:29]} 1-0